Cogmind - Beta 12 @@@ ROGUE MODE // 2023.11.19 @ 12:30:41 Player: epb Result: Destroyed by Y-45 Defender with Beam Rifle Performance ------------- Evolutions (2) 1000 Regions Visited (4) 800 Robots Destroyed (9) 45 Value Destroyed (183) 183 Prototype IDs (0) 0 Alien Tech Used (0) 0 Bonus (0) 0 TOTAL SCORE: 2028 Bonus ------- None Cogmind --------- Core Integrity 0/550 Matter 300/300 Energy 100/100 System Corruption 0% Temperature Cool (27) Movement Core (50) Location -8/Materials Parts ------- > --- POWER (2) -------- (None) > --- PROPULSION (2) --- (None) > --- UTILITY (3) ------ Visual Processing Unit > --- WEAPON (4) ------- (None) > --- INVENTORY (5) ---- Hardened Light Armor Plating Ion Cannon Peak State ------------ > --- POWER ------------ (None) > --- PROPULSION ------- Armored Wheel > --- UTILITY ---------- Small Storage Unit Weight Redist. System Visual Processing Unit > --- WEAPON ----------- Heavy Particle Cannon Plasma Cutter > --- INVENTORY -------- Hardened Light Armor Plating [Rating: 12] Favorites ----------- Power Light Ion Engine Engine Light Ion Engine Propulsion Light Treads Treads Light Treads Leg Aluminum Leg Wheel Armored Wheel Utility Small Storage Unit Device Weight Redist. System Storage Small Storage Unit Processor Visual Processing Unit Weapon Medium Laser Energy Gun Medium Laser Energy Cannon Heavy Particle Cannon Special Weapon Plasma Cutter Build | -11 -10 -10 -9 -8 ------- Run | Jun Mat Min Mat Mat Slots Evolved 4 | . . . 2 2 Power 1 | . . . . 1 Propulsion . | . . . . . Utility 1 | . . . 1 . Weapon 2 | . . . 1 1 Parts Attached 17 | 8 2 1 2 4 Power 2 | 1 1 . . . Engine 2 | 1 1 . . . Core . | . . . . . Reactor . | . . . . . Propulsion 7 | 4 . . . 3 Treads 2 | 2 . . . . Leg 3 | 2 . . . 1 Wheel 2 | . . . . 2 Hover . | . . . . . Flight . | . . . . . Utility 3 | 1 1 . 1 . Device 1 | . . . 1 . Storage 1 | 1 . . . . Processor 1 | . 1 . . . Hackware . | . . . . . Protection . | . . . . . Artifact . | . . . . . Weapon 5 | 2 . 1 1 1 Energy Gun 3 | 2 . 1 . . Energy Cannon 1 | . . . . 1 Ballistic Gun . | . . . . . Ballistic Cannon . | . . . . . Launcher . | . . . . . Special Weapon 1 | . . . 1 . Impact Weapon . | . . . . . Slashing Weapon . | . . . . . Piercing Weapon . | . . . . . Special Melee Weapon . | . . . . . Unidentified Prototypes . | . . . . . Parts Lost 13 | . 2 . 5 6 Power 2 | . 1 . 1 . Propulsion 4 | . . . 2 2 Utility 2 | . . . . 2 Weapon 5 | . 1 . 2 2 Highest Loss Streak 5 | . 2 . 5 2 To Critical Strikes . | . . . . . Average Slot Usage (%) 64 | . 83 91 73 36 Engine 7 | . 14 14 10 . Treads 15 | . 28 28 17 . Wheel 3 | . . . . 8 Device 3 | . . . 10 4 Storage 11 | . 14 14 11 9 Processor 8 | . 4 14 11 9 Energy Gun 11 | . 21 19 12 . Energy Cannon 1 | . . . . 4 Naked Turns . | . . . . . Heaviest Build 12 | 11 11 12 12 12 Greatest Support 46 | 40 40 40 46 24 Greatest Overweight (x) 2 | 2 . . . 1 Average Overweight (x) . | . . . . . Largest Inventory Capacity 8 | 8 8 8 8 8 Average Capacity 7 | 7 8 8 8 7 Most Carried 5 | 5 4 2 1 2 Average Carried 1 | 2 2 1 1 1 Final Capacity 8 | 8 8 8 8 5 Final Carried 4 | 4 2 1 1 2 Class Distribution -------------------- 100% | Mutant Dominant Class ---------------- Mutant | -10/Materials Mutant | -10/Mines Mutant | -9/Materials Mutant | -8/Materials Resources | -11 -10 -10 -9 -8 ----------- Run | Jun Mat Min Mat Mat Matter Collected 280 | 208 72 . . . Remotely . | . . . . . Salvage Created 182 | . 152 . 30 . Parts 17 | . 15 . 2 . Haulers Intercepted . | . . . . . Recyclers Shooed . | . . . . . Parts Field Recycled . | . . . . . Retrieved Matter . | . . . . . Parts Self-Destructed . | . . . . . Prevented . | . . . . . Kills | -11 -10 -10 -9 -8 ------- Run | Jun Mat Min Mat Mat Combat Hostiles Destroyed 7 | . 5 . 2 . Guns 7 | . 5 . 2 . Classes Destroyed 3 | . 3 . . . Watcher 2 | . 2 . . . Swarmer 5 | . 3 . 2 . Grunt 2 | . 2 . . . Best Kill Streak 5 | . 5 . 2 . Combat Bots Only 3 | . 3 . 2 . Max Kills in Single Turn 2 | . 2 . 1 . Gunslinging 1 | . 1 . . . Exploded . | . . . . . Melee . | . . . . . Uniques/NPCs Destroyed . | . . . . . Combat | -11 -10 -10 -9 -8 -------- Run | Jun Mat Min Mat Mat Damage Taken 2043 | . 436 . 520 1087 Core 901 | . 206 . 132 563 Absorbed by Shields . | . . . . . Core Remaining (%) 61 | 100 . 17 67 . Volleys Fired 20 | . 11 2 6 1 Largest 2 | . 2 1 1 1 Hottest 90 | . 90 50 50 75 Shots Fired 31 | . 22 2 6 1 Gun 30 | . 22 2 6 . Cannon 1 | . . . . 1 Launcher . | . . . . . Special . | . . . . . Kinetic . | . . . . . Thermal 31 | . 22 2 6 1 Explosive . | . . . . . Electromagnetic . | . . . . . Robot Hit Streak 9 | . 9 . 3 . Robot Miss Streak 3 | . 3 1 2 1 Penetration Max . | . . . . . Secondary Targets 2 | . 2 . . . Max Gunslinging Chain 1 | . 1 . . . Shots Hit Robots 19 | . 15 . 4 . Core Hits 17 | . 10 . 2 5 Critical Kills . | . . . . . Critical Parts Destroyed . | . . . . . Critical Strikes 1 | . 1 . . . Burn 1 | . 1 . . . Melee Attacks . | . . . . . Impact . | . . . . . Slashing . | . . . . . Piercing . | . . . . . Sneak Attacks . | . . . . . Combat Hostiles . | . . . . . Follow-up Attacks . | . . . . . Damage Inflicted 437 | . 297 . 54 86 Guns 238 | . 187 . 51 . Cannons . | . . . . . Explosions 110 | . 110 . . . Melee . | . . . . . Ramming 89 | . . . 3 86 Kinetic . | . . . . . Thermal 238 | . 187 . 51 . Explosive 110 | . 110 . . . Electromagnetic . | . . . . . Impact . | . . . . . Slashing . | . . . . . Piercing . | . . . . . Highest Corruption . | . . . . . Average Corruption . | . . . . . Corruption Purged . | . . . . . Corruption Blocked . | . . . . . Overload Shots . | . . . . . Overflow Damage 7 | . 7 . . . Projectiles . | . . . . . Explosions 7 | . 7 . . . Melee . | . . . . . Knockbacks . | . . . . . Impact . | . . . . . Kinetic . | . . . . . Secondary . | . . . . . Self-Inflicted Damage 230 | . 191 . . 39 Shots 2 | . 2 . . . Rammed 24 | . . . 4 20 Targets Rammed 24 | . . . 4 20 Kicked . | . . . . . Crushed . | . . . . . Highest Temperature 282 | . 282 20 24 39 Average Temperature 88 | . 117 12 12 21 Received Heat Transfer 696 | . 108 . 102 486 Siege Activations . | . . . . . Robots Corrupted . | . . . . . Combat Hostiles . | . . . . . Parts Fried . | . . . . . Impact Corruptions . | . . . . . Robots Melted . | . . . . . Combat Hostiles . | . . . . . Parts Melted 2 | . 1 . 1 . Heat Transferred 730 | . 582 . 148 . Parts Sabotaged . | . . . . . Parts Stolen . | . . . . . Parts Stripped . | . . . . . Power Chain Reactions . | . . . . . Missiles Intercepted . | . . . . . Alert | -11 -10 -10 -9 -8 ------- Run | Jun Mat Min Mat Mat Peak Influence 206 | . 206 79 70 28 Initial 79 | . . 79 30 12 Average 47 | . 114 79 34 10 Maximum Alert Level 1 | . 1 . . . Low Security (%) 87 | 100 52 100 100 100 Level 1 12 | . 47 . . . Level 2 . | . . . . . Level 3 . | . . . . . Level 4 . | . . . . . Level 5 . | . . . . . High Security . | . . . . . Max Security . | . . . . . Squads Dispatched 2 | . 1 . . 1 Investigation 1 | . 1 . . . Extermination . | . . . . . Reinforcement 1 | . . . . 1 Assault . | . . . . . Garrison . | . . . . . Intercept . | . . . . . Searches Triggered . | . . . . . Construction Impeded . | . . . . . Haulers Reinforced . | . . . . . Active Scanning Responses . | . . . . . Cargo Convoy Interrupts . | . . . . . Stealth | -11 -10 -10 -9 -8 --------- Run | Jun Mat Min Mat Mat Distress Signals 2 | . 1 . . 1 Communications Jammed . | . . . . . Distress Signals . | . . . . . Times Spotted 26 | . 8 . 11 7 Peak Tracking Total 9 | . 6 . 9 8 Tactical Retreats . | . . . . . Traps | -11 -10 -10 -9 -8 ------- Run | Jun Mat Min Mat Mat Traps Triggered 1 | . 1 . . . Indirectly . | . . . . . Trap Hack Attempts . | . . . . . Triggered . | . . . . . Disarmed . | . . . . . Reprogrammed . | . . . . . Reused . | . . . . . Traps Extracted . | . . . . . Installed . | . . . . . Triggered . | . . . . . Machines | -11 -10 -10 -9 -8 ---------- Run | Jun Mat Min Mat Mat Machines Disabled 2 | . 2 . . . Max in Single Turn 2 | . 2 . . . Machines Repaired . | . . . . . Machines Sabotaged . | . . . . . Overloaded Fab Kills . | . . . . . Hacking | -11 -10 -10 -9 -8 --------- Run | Jun Mat Min Mat Mat Machines Accessed . | . . . . . Terminals . | . . . . . Fabricators . | . . . . . Repair Stations . | . . . . . Recycling Units . | . . . . . Scanalyzers . | . . . . . Garrison Access . | . . . . . Total Hacks . | . . . . . Successful . | . . . . . Failed . | . . . . . Catastrophic . | . . . . . Database Lockouts . | . . . . . Manual . | . . . . . Terminals . | . . . . . Fabricators . | . . . . . Repair Stations . | . . . . . Recycling Units . | . . . . . Scanalyzers . | . . . . . Garrison Access . | . . . . . Terminal Hacks . | . . . . . Fabricator Hacks . | . . . . . Repair Station Hacks . | . . . . . Recycling Unit Hacks . | . . . . . Scanalyzer . | . . . . . Garrison Access Hacks . | . . . . . Unauthorized Hacks . | . . . . . Terminals . | . . . . . Fabricators . | . . . . . Repair Stations . | . . . . . Recycling Units . | . . . . . Scanalyzers . | . . . . . Garrison Access . | . . . . . Data Cores Recovered . | . . . . . Used . | . . . . . Hacking Detections . | . . . . . Full Trace Events . | . . . . . Feedback Events . | . . . . . Feedback Blocked . | . . . . . Robot Schematics Acquired . | . . . . . Robots Built . | . . . . . Authchips . | . . . . . Time . | . . . . . Total Robot Build Rating . | . . . . . Part Schematics Acquired . | . . . . . Parts Built . | . . . . . Authchips . | . . . . . Time . | . . . . . Total Part Build Rating . | . . . . . Parts Repaired . | . . . . . Time . | . . . . . Parts Recycled . | . . . . . Recycled Matter . | . . . . . Retrieved Matter . | . . . . . Retrieved Components . | . . . . . Parts Scanalyzed . | . . . . . Part Schematics Acquired . | . . . . . Parts Damaged . | . . . . . Bothacking | -11 -10 -10 -9 -8 ------------ Run | Jun Mat Min Mat Mat Used RIF Installer . | . . . . . Robots Hacked . | . . . . . Non-combat . | . . . . . Combat . | . . . . . Robot Hacks Applied . | . . . . . Relay Couplers Released . | . . . . . Fabnet Peak Effective % . | . . . . . Robots Rewired . | . . . . . Allies Hacked . | . . . . . Hacks Repelled . | . . . . . Allies | -11 -10 -10 -9 -8 -------- Run | Jun Mat Min Mat Mat Total Allies . | . . . . . Largest Group . | . . . . . Highest-Rated Group . | . . . . . Highest-Rated Ally . | . . . . . Total Orders . | . . . . . Ally Attacks . | . . . . . Total Damage . | . . . . . Kills . | . . . . . Allies Corrupted . | . . . . . Allies Melted . | . . . . . Intel | -11 -10 -10 -9 -8 ------- Run | Jun Mat Min Mat Mat Robot Analysis Total . | . . . . . Derelict Logs Recovered . | . . . . . Drone Launches . | . . . . . Drone Recoveries . | . . . . . Exploration | -11 -10 -10 -9 -8 ------------- Run | Jun Mat Min Mat Mat Turns Passed 624 | 86 167 52 120 199 Spaces Moved 444 | 52 81 30 89 192 Core 82 | 3 . . 42 37 Treads 181 | 23 81 30 47 . Legs 26 | 26 . . . . Wheels 155 | . . . . 155 Hover . | . . . . . Flight . | . . . . . Fastest Speed 50 | 50 160 160 50 50 Average Speed 115 | 136 160 160 108 88 Slowest Speed 160 | 160 160 160 160 100 Overloaded Moves . | . . . . . Propulsion Burnouts . | . . . . . Robots Hopped . | . . . . . Cave-ins Triggered . | . . . . . Exploration Rate (%) 14 | 4 21 13 14 18 Regions Visited 4 Branch Regions 1 Pre-discovered Areas . | . . . . . Known Exits Taken . | . . . . . Unknown Exits Taken 4 | 1 1 1 1 . Scrap Searched . | . . . . . Spaces Dug . | . . . . . Terrain Destroyed 32 | . 31 . . 1 Melee . | . . . . . Projectile 1 | . . . . 1 AOE 31 | . 31 . . . Terrain Rammed . | . . . . . Walls Destroyed . | . . . . . Machines Disabled . | . . . . . Actions | -11 -10 -10 -9 -8 --------- Run | Jun Mat Min Mat Mat Total 515 | 64 97 32 102 220 Wait 4 | . 1 . 2 1 Move 440 | 51 80 29 88 192 Hop . | . . . . . Pick Up 6 | 4 1 . . 1 Fast Attach 13 | 6 1 . 2 4 Attach 3 | 1 1 1 . . Detach 1 | 1 . . . . Swap 1 | 1 . . . . Drop 3 | . 2 . . 1 Fire 20 | . 11 2 6 1 Melee . | . . . . . Ram 20 | . . . . 20 Kick . | . . . . . Crush 4 | . . . 4 . Escape Stasis . | . . . . . Rewire . | . . . . . Trap . | . . . . . Miscellaneous . | . . . . . Route ------- -11/Junkyard -10/Materials -10/Mines -9/Materials -8/Materials History --------- Turn | Location | Event 20 | -11/Junkyard | Discovered new exit (range 15) 87 | -11/Junkyard | Entered Materials 176 | -10/Materials | Core integrity fell below 50% 176 | -10/Materials | Core integrity fell below 20% 195 | -10/Materials | Discovered new exit (range 16) 254 | -10/Materials | Entered Mines 296 | -10/Mines | Discovered new exit (range 5) 306 | -10/Mines | Entered Materials 306 | -9/Materials | Evolved 2 slots: Utility x1, Weapon x1 308 | -9/Materials | Build established: Mutant 422 | -9/Materials | Discovered new exit (range 5) 426 | -9/Materials | Entered another Materials area 426 | -8/Materials | Evolved 2 slots: Power x1, Weapon x1 448 | -8/Materials | Lost 5 parts (1p2n2w) 596 | -8/Materials | Core integrity fell below 50% 620 | -8/Materials | Core integrity fell below 20% 625 | -8/Materials | Destroyed by Y-45 Defender with Beam Rifle Last Messages --------------- 00541_ Acquired Arm. Wheel. 00553_ Slammed into Y-45 Defender. 00563_ Arm. Wheel destroyed. 00564_ Slammed into G-47 Trooper. 00565_ Hvy. Particle Cannon destroyed. 00565_ Slammed into G-47 Trooper. 00568_ Destabilizing: Core damaged (-5). 00569_ Slammed into G-47 Trooper. 00570_ Critical hit (Burn: +37). 00578_ W-25 Informer sends out distress signal. 00579_ ALERT: Hostiles spotted, dispatching reinforcements to Terminal M006. 00599_ Arm. Wheel destroyed. 00601_ Critical hit (Burn: +37). 00622_ Slammed into Y-45 Defender. 00622_ Sml. Storage Unit destroyed. 00622_ G-47 Trooper destroyed. 00623_ Slammed into G-47 Trooper. 00624_ Destabilizing: Core damaged (-11). 00625_ Slammed into G-47 Trooper. Map ----- +----------------------------------------------------+ | ?????????????# # # """ #??????????????? | | ?????????????# # # """ #??????????????? | | ?????????????# "Y" + + """ #??????????????? | | ?????????????# """ # # #??????????????? | | ?????????????# # # #??????????????? | | ?????????????######## #?######??????????????? | | ?????????????? #### #?????????????????????? | | ??????????????" #??# #?????????????????????? | | ??????????????" ! #??# #?????????????????????? | | ???????????#""" #??# #?????????????????????? | | ???????????# #??# #?????????????????????? | | ????????????""" ??##%##############????????? | | ????????????""" ??#%% ?????? | | ?????????????"" ???# % ?????? | | ????????????? ???#%%##############????????? | | ????########?? ????# #?????????????????????? | | ????# #?? ???## ##????????????????????? | | ????# ####+##### #????????????????????? | | ????# / #????????????????????? | | ????# ### T #????????????????????? | | ????#/ ! #?# ##### #????????????????????? | | ????# #?# #???######????????????????????? | | ????####+##### ##### #????????????????????? | | ?????# #????????????????????? | | ?????# g #????????????????????? | | ?????###+####+#######g@ #????????????????????? | | ?????#! !# ???###/##########?????????????? | | ?????# # """?# [%g #?????????????? | | ?????# "" ]#" """ # =Y #?????????????? | | ?????# "T #T """ # " """"" #?????????????? | | ?????# "" #" # """"""""" #?????????????? | | ?????# /# = [# """ """ #?????????????? | | ??????###########################?????????????? | | | | | | | | | | | | | | | | | | | | | | | | | | | | | | | | | | | +----------------------------------------------------+ Best States ------------- Heat Dissipation 31 Energy Generation 10 Energy Capacity 125 Matter Stores 300 Matter Capacity 300 Sight Range 18 Terrain Scan Density 10 Additional Mass Support 6 Evasion (%) 55 Recoil Reduction 2 Item Schematics ----------------- None Robot Schematics ------------------ None Fabricated ------------ Nothing Alien Tech Used ----------------- None Achievements -------------- None Challenges ------------ None Game ------ Seed MetafiberUtilityNullifier Manual? 0 Play Time 00:09:10 Cumulative 7.6 hours Start 2023.11.19 @ 12:22:32 End 2023.11.19 @ 12:30:41 Sessions 1 Manual Loads 0 Difficulty Rogue Special Mode None Game No. 23 Rogue 23 Adventurer 0 Explorer 0 Win Type - Total 0 Types 0/0/0/0/0/0/0/0/0 Lore% 6 Gallery% 14 Achievement% 12 Wizard Run 0 Options --------- ASCII 0 Keyboard 0 Movement Vi Keybinds 0 Fullscreen 1 Font 18/X11Bold Map View 76x50 Tactical HUD 1 Map Filters NONE Filters NONE Steam 1 RUN: fbda2ac7-66f5-4a25-9281-8e83e9693cfc